{"text_format":"2","workbook":"xlsx","n_sheets":1,"sheets":["Költségvetés"],"not_rendered":{"charts":0,"images":0,"macros":0,"external_links":0,"defined_names":0,"comments":0,"pivot_tables":0},"unopened":[],"bounds":{"document_bytes":16777216,"sheet_cells":100000,"run_cost":"one","rows_first":2000,"rows_last":500,"rows_between":2000,"halvings":0,"cell_chars":16384,"cell_head_chars":4096},"cells_cut":0,"cells_raw":0,"read":"whole","date_system":"1900"}

{"sheet":"Költségvetés","index":0,"n_rows":37,"n_cols":8,"rows_kept":37,"cut":false,"hidden":false,"merged":[[33,0,33,5],[34,0,34,5],[35,0,35,5],[36,0,36,5],[1,0,1,1],[8,0,8,1],[10,0,10,3],[18,0,18,3],[29,1,29,3],[28,0,28,3],[30,1,30,3],[31,1,31,3]]}
[]
["Gyengeáramú vezetékhálózat kialakítása ( Behatolásjelző rendszer)"]
["sorszám","Munka megnevezése","menniség","db/m","anyag egységre ","munkadíj egységre","anyag ","munkadíj"]
["1.","Biztonságtechnikai kábel (2*0,5+4*0,22+T+S)",500,"m",null,null,{"$f":"E4*C4","v":0},{"$f":"C4*F4","v":0}]
["2.","Kommunikációs gerinckábel",300,"m",null,null,{"$f":"E5*C5","v":0},{"$f":"C5*F5","v":0}]
["3.","Szerelési segédanyagok (mü. Csatorna, távtartó, csavar, kötődoboz, stb.)",1,"klt",null,null,0,0]
["4.","Kábelfeszítés , kötegelés vezetékhálózat kiépítése",1,"kltg",null,null,0,0]
[]
["Riasztórendszer telepítése"]
["sorszám","Munka megnevezése","menniség","db/m","anyag egységre ","munkadíj egységre","anyag ","munkadíj"]
["Főépület /  Kutyaház/"]
[1,"ATS 2099 riasztóközpont ( fémdoboz)",1,"db",null,null,{"$f":"E12*C12","v":0},{"$f":"C12*F12","v":0}]
[2,"GSM kommunikátor ATS 7310 /központba integrálható/",1,"ktg",null,null,{"$f":"E13*C13","v":0},{"$f":"C13*F13","v":0}]
[3,"ATS 1110 LCD kezelő",2,"db",null,null,0,0]
[4,"EV 1012 mozgásérzékelő",6,"db",null,null,0,0]
[5,"DC 102R4.7 Nyitásérzékelő fém nyilászáróra",5,"db",null,null,0,0]
[6,"kültéri hang és fényjelző sziréna +akkumulátor",1,"db",null,null,0,0]
[7,"Akkumulátor 12V /18Ah riasztóközponthoz  ",1,"db",null,null,0,0]
["Melléképület /Kisállatház /"]
[8,"ATS 1201 zónabővítő felügyelt  2.2A  beépített tápegységgel",1,"db",null,null,0,0]
[9,"ATS 1210L zónabővítő ",2,"db",null,null,0,0]
[10,"EV 1012 mozgásérzékelő",9,"db",null,null,0,0]
[11,"DC 102 R4.7 Nyitásérzékelő fém nyilászáróra",7,"db",null,null,0,0]
[12,"Akkumulátor 12V 18Ah zónabővítőhöz",1,"db",null,null,0,0]
[13,"Szerelvényezés, üzembe helyezés programozás",1,"ktg",null,null,{"$f":"E25*C25","v":0},{"$f":"C25*F25","v":0}]
[]
[]
[]
["Összesítő"]
["sorszám","Munka megnevezése",null,null,"anyag egységre ","munkadíj egységre","anyag ","munkadíj"]
["1.","Gyengeáramú vezetékhálózat kialakítása ( Behatolásjelző rendszer)",{"$nulls":4},{"$f":"SUM(G4:G7)","v":0},{"$f":"SUM(H4:H7)","v":0}]
["2.","Riasztórendszer telepítése",{"$nulls":4},{"$f":"SUM(G11:G25)","v":0},{"$f":"SUM(H11:H25)","v":0}]
[]
["Nettó összesen:",{"$nulls":5},{"$f":"SUM(G31:G32)","v":0},{"$f":"SUM(H31:H32)","v":0}]
["Tartalékkeret (5%)",{"$nulls":5},{"$f":"G34*0.05","v":0},{"$f":"H34*0.05","v":0}]
["Áfa 27%",{"$nulls":5},{"$f":"(G35+G34)*0.27","v":0},{"$f":"(H35+H34)*0.27","v":0}]
["Bruttó összeg:",{"$nulls":5},{"$f":"(G36+G35+G34)","v":0},{"$f":"(H36+H35+H34)","v":0}]